fUST/lending_fUST_20251220
["ID","MTS","AMOUNT","RATE_DAILY","PERIOD"]
[399272390,1766224737126,-560.01,0.00055342,120]
[399272391,1766224737159,-782.12,0.00055342,120]
[399272392,1766224737193,-500.0,0.00055342,120]
[399272393,1766224737227,-500.0,0.00055342,120]
[399272394,1766224737261,-500.0,0.00055342,120]
[399272395,1766224737296,-609.15487493,0.00055342,120]
[399272396,1766224737329,-728.31,0.00055342,120]
[399272397,1766224737363,-542.41,0.00055342,120]
[399272398,1766224737396,-834.71,0.00055342,120]
[399272399,1766224737429,-500.0,0.00055342,120]
[399272400,1766224737462,-500.0,0.00055342,120]
[399272401,1766224737494,-913.64,0.00055342,120]
[399272402,1766224737525,-1238.33,0.00055342,120]
[399272403,1766224737557,-601.71,0.00055342,120]
[399272404,1766224737588,-500.0,0.00055342,120]
[399272405,1766224737621,-500.0,0.00055342,120]
[399272406,1766224737653,-500.0,0.00055342,120]
[399272407,1766224737687,-500.0,0.00055342,120]
[399272408,1766224737717,-500.0,0.00055342,120]
[399272409,1766224737750,-925.52,0.00055342,120]
[399272410,1766224737780,-1324.59,0.00055342,120]
[399272411,1766224737812,-1496.52,0.00055342,120]
[399272412,1766224737842,-977.5,0.00055342,120]
[399272413,1766224738025,-500.0,0.00055342,120]
[399272414,1766224738059,-738.89,0.00055342,120]
[399272415,1766224738093,-598.1,0.00055342,120]
[399272416,1766224738124,-500.0,0.00055342,120]
[399272417,1766224738157,-467.44125919,0.00055342,120]
[399272418,1766224738190,-581.34,0.00055342,120]
[399272419,1766224738222,-500.0,0.00055342,120]
[399272420,1766224738256,-500.0,0.00055342,120]
[399272421,1766224738288,-500.0,0.00055342,120]
[399272422,1766224738320,-500.0,0.00055342,120]
[399272423,1766224738352,-500.0,0.00055342,120]
[399272424,1766224738384,-601.92287897,0.00055342,120]
[399272425,1766224738416,-500.0,0.00055342,120]
[399272426,1766224738447,-500.0,0.00055342,120]
[399272427,1766224738483,-1599.07,0.00055342,120]
[399272428,1766224738515,-500.0,0.00055342,120]
[399272429,1766224738547,-636.57,0.00055342,120]
[399272430,1766224738580,-500.0,0.00055342,120]
[399272431,1766224738612,-500.0,0.00055342,120]
[399272432,1766224738644,-648.14,0.00055342,120]
[399272433,1766224738677,-500.0,0.00055342,120]
[399272434,1766224738708,-500.0,0.00055342,120]
[399272435,1766224738741,-538.57422686,0.00055342,120]
[399272436,1766224738774,-2022.0,0.00055342,120]
[399272437,1766224738808,-500.0,0.00055342,120]
[399272438,1766224738844,-502.66,0.00055342,120]
[399272439,1766224738877,-500.0,0.00055342,120]
[399272440,1766224738909,-500.0,0.00055342,120]
[399272441,1766224738944,-567.97,0.00055342,120]
[399272442,1766224738980,-482.13158206,0.00055342,120]
[399272443,1766224739013,-500.0,0.00055342,120]
[399272444,1766224739046,-997.18,0.00055342,120]
[399272445,1766224739079,-1077.43,0.00055342,120]
[399272446,1766224739113,-500.0,0.00055342,120]
[399272447,1766224739146,-500.0,0.00055342,120]
[399272448,1766224739180,-1219.1,0.00055342,120]
[399272449,1766224739215,-500.0,0.00055342,120]
[399272450,1766224739253,-500.0,0.00055342,120]
[399272451,1766224739290,-1115.77,0.00055342,120]
[399272452,1766224739328,-500.0,0.00055342,120]
[399272453,1766224739362,-924.93,0.00055342,120]
[399272454,1766224739396,-574.86,0.00055342,90]
[399272455,1766224739429,-1256.41,0.00055342,120]
[399272456,1766224739463,-598.97,0.00055342,120]
[399272457,1766224739497,-500.0,0.00055342,120]
[399272458,1766224739531,-500.0,0.00055342,120]
[399272459,1766224739565,-1330.22,0.00055342,120]
[399272460,1766224739600,-500.0,0.00055342,120]
[399272461,1766224739636,-638.84,0.00055342,120]
[399272462,1766224739671,-1765.27,0.00055342,120]
[399272463,1766224739704,-1047.7,0.00055342,120]
[399272464,1766224739735,-500.0,0.00055342,120]
[399272465,1766224739770,-1746.61,0.00055342,120]
[399272466,1766224739808,-1334.52,0.00055342,120]
[399272467,1766224739842,-500.0,0.00055342,120]
[399272468,1766224739876,-1862.6,0.00055342,120]
[399272469,1766224739911,-500.0,0.00055342,120]
[399272470,1766224739954,-500.0,0.00055342,120]
[399272471,1766224739987,-500.0,0.00055342,120]
[399272472,1766224740024,-1992.67,0.00055342,120]
[399272473,1766224740058,-500.0,0.00055342,120]
[399272474,1766224740092,-500.0,0.00055342,120]
[399272475,1766224740127,-500.0,0.00055342,120]
[399272476,1766224740164,-500.0,0.00055342,120]
[399272477,1766224740201,-1573.71,0.00055342,120]
[399272478,1766224740240,-1315.85,0.00055342,120]
[399272479,1766224740278,-500.0,0.00055342,120]
[399272480,1766224740312,-500.0,0.00055342,120]
[399272481,1766224740347,-500.0,0.00055342,120]
[399272482,1766224740381,-801.95,0.00055342,120]
[399272483,1766224740414,-500.0,0.00055342,120]
[399272484,1766224740447,-500.0,0.00055342,120]
[399272485,1766224740479,-500.0,0.00055342,120]
[399272486,1766224740511,-553.11,0.00055342,120]
[399272487,1766224740543,-1662.46,0.00055342,120]
[399272488,1766224740574,-500.0,0.00055342,120]
[399272489,1766224740606,-500.0,0.00055342,120]
[399272490,1766224740637,-500.0,0.00055342,120]
[399272491,1766224740668,-1067.2,0.00055342,120]
[399272492,1766224740709,-918.2,0.00055342,120]
[399272493,1766224740748,-500.0,0.00055342,120]
[399272494,1766224740782,-500.0,0.00055342,120]
[399272495,1766224740814,-500.0,0.00055342,120]
[399272496,1766224740847,-689.18,0.00055342,120]
[399272497,1766224740879,-1473.04,0.00055342,30]
[399272498,1766224740912,-500.0,0.00055342,120]
[399272499,1766224740944,-500.0,0.00055342,120]
[399272500,1766224740979,-500.0,0.00055342,120]
[399272501,1766224741011,-500.0,0.00055342,120]
[399272502,1766224741044,-500.0,0.00055342,120]
[399272503,1766224741077,-500.0,0.00055342,120]
[399272504,1766224741109,-1856.59,0.00055342,120]
[399272505,1766224741147,-500.0,0.00055342,120]
[399272506,1766224741183,-500.0,0.00055342,120]
[399272507,1766224741458,-735.23,0.00055342,120]
[399272508,1766224741494,-500.0,0.00055342,120]
[399272509,1766224741528,-546.2,0.00055342,120]
[399272510,1766224741561,-500.0,0.00055342,120]
[399272511,1766224741593,-500.0,0.00055342,120]
[399272512,1766224741630,-544.49,0.00055342,120]
[399272513,1766224741664,-500.0,0.00055342,120]
[399272514,1766224741697,-856.69,0.00055342,120]
[399272515,1766224741729,-500.0,0.00055342,120]
[399272516,1766224741761,-924.16,0.00055342,120]
[399272517,1766224741792,-500.0,0.00055342,120]
[399272518,1766224741825,-500.0,0.00055342,120]
[399272519,1766224741858,-500.0,0.00055342,120]
[399272520,1766224741891,-565.46,0.00055342,120]
[399272521,1766224741925,-500.0,0.00055342,120]
[399272522,1766224741957,-500.0,0.00055342,120]
[399272523,1766224741994,-1528.59,0.00055342,120]
[399272524,1766224742029,-1600.32,0.00055342,120]
[399272525,1766224742062,-701.49,0.00055342,120]
[399272526,1766224742096,-895.04,0.00055342,120]
[399272527,1766224742130,-521.34,0.00055342,120]
[399272528,1766224742164,-500.0,0.00055342,120]
[399272529,1766224742198,-500.0,0.00055342,120]
[399272530,1766224742237,-500.0,0.00055342,120]
[399272531,1766224742276,-500.0,0.00055342,120]
[399272532,1766224742315,-688.73,0.00055342,120]
[399272533,1766224742352,-1225.9,0.00055342,120]
[399272534,1766224742387,-638.05,0.00055342,120]
[399272535,1766224742423,-500.0,0.00055342,120]
[399272536,1766224742462,-500.0,0.00055342,120]
[399272537,1766224742499,-1875.49,0.00055342,120]
[399272538,1766224742534,-698.55,0.00055342,120]
[399272539,1766224742567,-1539.06,0.00055342,120]
[399272540,1766224742601,-1574.56,0.00055342,120]
[399272541,1766224742634,-1510.22,0.00055342,120]
[399272542,1766224742669,-500.0,0.00055342,120]
[399272543,1766224742701,-500.0,0.00055342,120]
[399272544,1766224742736,-642.83,0.00055342,120]
[399272545,1766224742767,-500.0,0.00055342,120]
[399272546,1766224742801,-599.09,0.00055342,120]
[399272547,1766224742833,-1734.45,0.00055342,120]
[399272548,1766224742865,-500.0,0.00055342,120]
[399272549,1766224742897,-500.0,0.00055342,120]
[399272550,1766224742931,-649.39,0.00055342,120]
[399272551,1766224742963,-500.0,0.00055342,120]
[399272552,1766224742996,-1037.51,0.00055342,120]
[399272553,1766224743037,-2643.89,0.00055342,120]
[399272554,1766224743076,-500.0,0.00055342,120]
[399272555,1766224743116,-542.81,0.00055342,120]
[399272556,1766224743156,-500.0,0.00055342,120]
[399272557,1766224743200,-500.0,0.00055342,120]
[399272558,1766224743240,-500.0,0.00055342,120]
[399272559,1766224743281,-595.52,0.00055342,120]
[399272560,1766224743319,-500.0,0.00055342,120]
[399272561,1766224743358,-2698.45,0.00055342,30]
[399272562,1766224743397,-500.0,0.00055342,120]
[399272563,1766224743435,-1067.31,0.00055342,120]
[399272564,1766224743472,-1695.13,0.00055342,120]
[399272565,1766224743508,-1062.8,0.00055342,120]
[399272566,1766224743543,-1015.34,0.00055342,120]
[399272567,1766224743577,-418.117269,0.00055342,120]
[399272568,1766224743612,-500.0,0.00055342,120]
[399272569,1766224743647,-500.0,0.00055342,120]
[399272570,1766224743682,-1880.2,0.00055342,120]
[399272571,1766224743716,-500.0,0.00055342,120]
[399272572,1766224743752,-658.83,0.00055342,120]
[399272573,1766224743787,-592.64,0.00055342,120]
[399272574,1766224743822,-500.0,0.00055342,120]
[399272575,1766224743858,-500.0,0.00055342,120]
[399272576,1766224743894,-1664.46,0.00055342,120]
[399272577,1766224743934,-877.43,0.00055342,120]
[399272578,1766224743971,-500.0,0.00055342,120]
[399272579,1766224744009,-1127.5,0.00055342,120]
[399272580,1766224744050,-862.44,0.00055342,120]
[399272581,1766224744088,-2419.08,0.00055342,120]
[399272582,1766224744125,-503.01632627,0.00055342,120]
[399272583,1766224744164,-1075.05,0.00055342,120]
[399272584,1766224744202,-970.66,0.00055342,120]
[399272585,1766224744241,-500.0,0.00055342,120]
[399272586,1766224744281,-2030.39,0.00055342,120]
[399272587,1766224744320,-500.0,0.00055342,120]
[399272588,1766224744360,-1860.91,0.00055342,120]
[399272589,1766224744398,-505.8,0.00055342,120]
[399272590,1766224744435,-1064.37,0.00055342,120]
[399272591,1766224744472,-1269.97,0.00055342,120]
[399272592,1766224744510,-500.0,0.00055342,120]
[399272593,1766224744549,-1583.57,0.00055342,120]
[399272594,1766224744588,-500.0,0.00055342,120]
[399272595,1766224744624,-874.33,0.00055342,120]
[399272596,1766224744660,-500.0,0.00055342,120]
[399272597,1766224744703,-500.0,0.00055342,120]
[399272598,1766224744742,-2653.19,0.00055342,120]
[399272599,1766224744781,-500.0,0.00055342,120]
[399272600,1766224744817,-500.0,0.00055342,120]
[399272601,1766224744855,-500.0,0.00055342,120]
[399272602,1766224745055,-548.14,0.00055342,120]
[399272603,1766224745096,-500.0,0.00055342,120]
[399272604,1766224745137,-1198.41,0.00055342,120]
[399272605,1766224745177,-500.0,0.00055342,120]
[399272606,1766224745216,-500.0,0.00055342,120]
[399272607,1766224745254,-1858.76,0.00055342,120]
[399272608,1766224745293,-500.0,0.00055342,120]
[399272609,1766224745334,-500.0,0.00055342,120]
[399272610,1766224745375,-500.0,0.00055342,120]
[399272611,1766224745415,-1582.72,0.00055342,120]
[399272612,1766224745455,-500.0,0.00055342,120]
[399272613,1766224745493,-748.65,0.00055342,120]
[399272614,1766224745530,-500.0,0.00055342,120]
[399272615,1766224745568,-524.58,0.00055342,120]
[399272616,1766224745605,-1422.38,0.00055342,120]
[399272617,1766224745645,-1799.07,0.00055342,120]
[399272618,1766224745682,-543.86,0.00055342,120]
[399272619,1766224745718,-503.55733626,0.00055342,120]
[399272620,1766224745755,-1427.24,0.00055342,120]
[399272621,1766224745792,-500.0,0.00055342,120]
[399272622,1766224745835,-626.87,0.00055342,120]
[399272623,1766224745878,-1073.62,0.00055342,120]
[399272624,1766224745926,-502.78646831,0.00055342,120]
[399272625,1766224745969,-500.0,0.00055342,120]
[399272626,1766224746008,-500.0,0.00055342,120]
[399272627,1766224746046,-500.0,0.00055342,120]
[399272628,1766224746085,-905.55,0.00055342,120]
[399272629,1766224746124,-500.0,0.00055342,120]
[399272630,1766224746161,-1256.4,0.00055342,120]
[399272631,1766224746198,-332.65,0.00055342,120]
[399272632,1766224746235,-601.74019438,0.00055342,120]
[399272662,1766225432523,-321.0,0.00013698,2]
[399272821,1766225438736,-879.0,0.00013698,2]
[399272822,1766225438747,-500.0,0.00013699,2]
[399272823,1766225438756,-500.0,0.00013699,2]
[399272824,1766225438766,-443.8999701,0.00013699,2]
[399272825,1766225438775,-500.0,0.00013699,2]
[399272826,1766225438785,-230.92616051,0.00013699,2]
[399272827,1766225438795,-146.00561682,0.00013699,2]
[399272828,1766225438807,-468.99438318,0.00013699,2]
[399272829,1766225438817,-1680.0,0.00015067,2]
[399272830,1766225438826,-641.90912433,0.000153,30]
[399272831,1766225438836,-623.28265559,0.000153,2]
[399272832,1766225438846,-300.0,0.00015695,2]
[399272833,1766225438855,-300.0,0.00015696,2]
[399272834,1766225438864,-300.0,0.00015696,2]
[399272835,1766225438874,-1200.0,0.00015698,2]
[399272836,1766225438883,-272.4928694,0.00015699,2]
[399272837,1766225438893,-623.28265559,0.00015761,2]
[399272838,1766225438902,-623.28265559,0.00016222,3]
[399272839,1766225438911,-1370.50500986,0.00016352,2]
[399272840,1766225438922,-500.0,0.00016448,2]
[399272841,1766225438931,-500.0,0.00016448,2]
[399272842,1766225438940,-500.0,0.00016448,2]
[399272843,1766225438950,-500.0,0.00016448,2]
[399272844,1766225438961,-500.0,0.00016448,2]
[399272845,1766225438971,-500.0,0.00016448,2]
[399272846,1766225438980,-500.0,0.00016448,2]
[399272847,1766225438990,-500.0,0.00016448,2]
[399272848,1766225438999,-500.0,0.00016448,2]
[399272849,1766225439009,-500.0,0.00016448,2]
[399272850,1766225439018,-500.0,0.00016448,2]
[399272851,1766225439027,-228.56893626,0.00016448,2]
[399272852,1766225439037,-500.0,0.00016448,2]
[399272853,1766225439046,-500.0,0.00016448,2]
[399272854,1766225439055,-500.0,0.00016448,2]
[399272855,1766225439065,-500.0,0.00016448,2]
[399272856,1766225439074,-288.18506523,0.00016448,2]
[399272857,1766225439084,-500.0,0.00016448,2]
[399272858,1766225439093,-351.29601494,0.00016448,2]
[399272859,1766225439106,-148.70398506,0.00016448,2]
[399272860,1766225439115,-500.0,0.00016448,2]
[399272861,1766225439124,-500.0,0.00016448,2]
[399272862,1766225439135,-366.87402952,0.00016448,2]
[399272863,1766225439146,-218.14370357,0.00016448,2]
[399272873,1766225439902,-281.85629643,0.00016448,2]
[399272874,1766225439911,-500.0,0.00016448,2]
[399272875,1766225439921,-500.0,0.00016448,2]
[399272876,1766225439930,-500.0,0.00016448,2]
[399272877,1766225439939,-416.90682746,0.00016448,2]
[399272878,1766225439948,-500.0,0.00016448,2]
[399272879,1766225439958,-500.0,0.00016448,2]
[399272880,1766225439967,-631.66551264,0.00016448,2]
[399272881,1766225439976,-234.72091311,0.00016448,2]
[399272882,1766225439985,-500.0,0.00016448,2]
[399272883,1766225439994,-500.0,0.00016448,2]
[399272884,1766225440004,-200.0,0.00016448,2]
[399272885,1766225440013,-500.0,0.00016448,2]
[399272886,1766225440022,-500.0,0.00016448,2]
[399272887,1766225440031,-500.0,0.00016448,2]
[399272888,1766225440041,-500.0,0.00016448,2]
[399272889,1766225440050,-500.0,0.00016448,2]
[399272890,1766225440060,-500.0,0.00016449,2]
[399272891,1766225440069,-500.0,0.00016449,2]
[399272892,1766225440079,-2429.4209303,0.00016452,2]
[399272893,1766225440087,-172.2080565,0.00016452,2]
[399272894,1766225440096,-9764.5240804,0.00016452,2]
[399272895,1766225440105,-500.0,0.00016452,2]
[399272896,1766225440114,-1239.48472228,0.00016539,2]
[399272897,1766225440124,-193.4487629,0.00016565,2]
[399272898,1766225440133,-530.0,0.00016574,2]
[399272899,1766225440146,-160.0,0.00016629,2]
[399272900,1766225440155,-233.94196315,0.0001665,2]
[399272901,1766225440164,-377.37421541,0.0001665,2]
[399272902,1766225440173,-545.86458069,0.0001665,2]
[399272903,1766225440183,-500.0,0.0001665,2]
[399272904,1766225440192,-500.0,0.0001665,2]
[399272905,1766225440202,-500.0,0.0001665,2]
[399272906,1766225440212,-315.67262249,0.0001665,2]
[399272907,1766225440222,-500.0,0.0001665,2]
[399272908,1766225440232,-500.0,0.0001665,2]
[399272909,1766225440241,-500.0,0.0001665,2]
[399272910,1766225440250,-497.8309919,0.0001665,2]
[399272911,1766225440260,-184.10582561,0.0001665,2]
[399272912,1766225440269,-500.0,0.0001665,2]
[399272913,1766225440278,-500.0,0.0001665,2]
[399272914,1766225440287,-500.0,0.0001665,2]
[399272915,1766225440296,-2418.71523844,0.00016651,2]
[399272927,1766225445187,-5908.37634892,0.00016651,2]
[399272930,1766225472875,-48991.96433957,0.00016651,2]
[399272931,1766225472885,-383.0,0.00016665,2]
[399272932,1766225472894,-623.28265559,0.00016683,4]
[399272933,1766225472904,-500.0,0.00016726,2]
[399272934,1766225472914,-383.0,0.00016758,2]
[399272935,1766225472923,-500.0,0.00016763,2]
[399272936,1766225472932,-500.0,0.00016763,2]
[399272937,1766225472942,-500.0,0.00016763,2]
[399272938,1766225472951,-45831.87068102,0.00016764,2]
[399272939,1766225472960,-300.0,0.00016779,2]
[399272940,1766225472970,-300.0,0.00016779,2]
[399272941,1766225472979,-300.0,0.00016779,2]
[399272942,1766225472988,-300.0,0.00016779,2]
[399272943,1766225472998,-300.0,0.00016779,2]
[399272944,1766225473007,-300.0,0.00016779,2]
[399272945,1766225473016,-300.0,0.00016779,2]
[399272946,1766225473025,-300.0,0.00016779,2]
[399272947,1766225473035,-300.0,0.00016779,2]
[399272948,1766225473049,-300.0,0.00016779,2]
[399272949,1766225473059,-300.0,0.00016779,2]
[399272950,1766225473069,-300.0,0.00016779,2]
[399272951,1766225473079,-300.0,0.00016779,2]
[399272952,1766225473088,-300.0,0.00016779,2]
[399272953,1766225473098,-300.0,0.00016779,2]
[399272954,1766225473107,-383.0,0.00016839,2]
[399272955,1766225473116,-1465.2048938,0.0001688,2]
[399272956,1766225473125,-665.05775618,0.00016926,7]
[399272957,1766225473135,-185.25251532,0.00016949,2]
[399272958,1766225473144,-181.13716137,0.00016949,2]
[399272959,1766225473156,-383.0,0.00016966,2]
[399272960,1766225473166,-383.0,0.00016968,2]
[399272961,1766225473176,-383.0,0.00016977,2]
[399272962,1766225473185,-168.0,0.00017015,2]
[399272963,1766225473194,-2880.25613656,0.00017039,2]
[399272964,1766225473205,-600.0,0.00017085,2]
[399272965,1766225473215,-195.79071859,0.00017097,7]
[399272966,1766225473227,-701.41128533,0.00017098,2]
[399272967,1766225473236,-383.0,0.00017098,2]
[399272968,1766225473246,-168.0,0.00017109,2]
[399272969,1766225473255,-504.73133281,0.00017132,2]
[399272970,1766225473265,-623.28265559,0.00017144,5]
[399272971,1766225473277,-168.0,0.00017146,2]
[399272972,1766225473288,-168.0,0.00017158,2]
[399272973,1766225473298,-300.0,0.00017165,2]
[399272974,1766225473308,-420.0,0.00017166,2]
[399272975,1766225473317,-359.0,0.00017168,2]
[399272976,1766225473327,-260.0,0.00017177,2]
[399272977,1766225473336,-168.0,0.00017198,2]
[399272978,1766225473345,-168.0,0.00017242,2]
[399272979,1766225473355,-168.0,0.00017269,2]
[399272980,1766225473364,-168.0,0.00017273,2]
[399272981,1766225473374,-281.62559962,0.00017335,2]
[399272982,1766225473383,-168.0,0.00017421,2]
[399272983,1766225473392,-242.39232526,0.00017459,2]
[399272984,1766225473403,-499.0,0.00017462,2]
[399272985,1766225473412,-168.0,0.00017493,2]
[399272986,1766225473421,-499.0,0.00017525,2]
[399272987,1766225473431,-499.0,0.00017526,2]
[399272988,1766225473441,-500.0,0.00017553,2]
[399272989,1766225473451,-1053.08586847,0.00017554,2]
[399272990,1766225473460,-325.72084358,0.0001758,2]
[399272991,1766225473469,-623.28265559,0.00017606,6]
[399272992,1766225473479,-314.05957829,0.00017699,2]
[399272993,1766225473488,-482.94608861,0.00017725,2]
[399272994,1766225473497,-499.0,0.0001789,2]
[399272995,1766225473507,-499.0,0.00017937,2]
[399272996,1766225473516,-623.28265559,0.00018067,7]
[399272997,1766225473526,-499.0,0.00018193,2]
[399272998,1766225473535,-499.0,0.00018281,2]
[399272999,1766225473544,-168.0,0.00018338,2]
[399273000,1766225473554,-239.34378096,0.00018408,2]
[399273001,1766225473564,-907.60788266,0.00018477,2]
[399273002,1766225473574,-623.28265559,0.00018528,8]
[399273003,1766225473583,-415.63922173,0.00018543,2]
[399273004,1766225473593,-160.0,0.00018734,2]
[399273005,1766225473602,-1041.66666667,0.00018734,2]
[399273006,1766225473612,-587.0,0.00018774,2]
[399273007,1766225473622,-720.0,0.00018793,2]
[399273008,1766225473632,-150.104,0.00018817,2]
[399273009,1766225473642,-632.0,0.00018817,2]
[399273010,1766225473651,-2159.0,0.00018817,2]
[399273011,1766225473661,-1362.0,0.00018817,2]
[399273012,1766225473671,-623.28265559,0.00018989,9]
[399273013,1766225473681,-156.83,0.000192,2]
[399273014,1766225473690,-623.28265559,0.0001945,10]
[399273015,1766225473699,-417.43098248,0.00019527,2]
[399273016,1766225473709,-355.62628718,0.00019699,2]
[399273017,1766225473719,-2178.7598218,0.00019857,2]
[399273018,1766225473728,-623.28265559,0.00019911,11]
[399273019,1766225473738,-500.0,0.00019999,2]
[399273020,1766225473747,-2000.0,0.0002,7]
[399273021,1766225473757,-194.29463097,0.0002,2]
[399273022,1766225473766,-17904.16581864,0.0002,2]
[399273023,1766225473775,-154.64574152,0.0002,2]
[399273024,1766225473785,-150.0,0.0002,2]
[399273025,1766225473794,-2000.0,0.0002,14]
[399273026,1766225473803,-1106.5,0.0002,14]
[399273027,1766225473813,-849.026784,0.00020187,2]
[399273028,1766225473822,-623.28265559,0.00020372,12]
[399273029,1766225473832,-2000.0,0.000205,7]
[399273030,1766225473842,-823.0,0.00020533,2]
[399273031,1766225473851,-486.1470279,0.00020616,2]
[399273032,1766225473861,-864.0,0.00020673,2]
[399273033,1766225473871,-266.0,0.00020767,3]
[399273034,1766225473880,-623.28265559,0.00020833,13]
[399273035,1766225473889,-2000.0,0.00021,7]
[399273036,1766225473899,-559.86268443,0.00021,2]
[399273037,1766225473917,-500.0,0.00021,2]
[399273038,1766225473928,-150.0,0.00021,2]
[399273039,1766225473944,-623.28265559,0.00021294,14]
[399273040,1766225473954,-500.0,0.00021466,2]
[399273041,1766225473963,-2000.0,0.000215,7]
[399273042,1766225473977,-397.19299607,0.00021699,2]
[399273043,1766225473986,-623.28265559,0.00021755,15]
[399273044,1766225473995,-632.0,0.00021817,2]
[399273045,1766225474004,-1265.855,0.00021817,2]
[399273046,1766225474013,-1361.0,0.00021817,2]
[399273047,1766225474022,-1370.5050098,0.00021859,2]
[399273048,1766225474031,-212.0,0.00021863,5]
[399273049,1766225474040,-193.4487629,0.000219,2]
[399273050,1766225474049,-5000.0,0.00021933,2]
[399273051,1766225474058,-500.0,0.00021999,2]
[399273052,1766225474067,-500.0,0.00021999,2]
[399273053,1766225474076,-500.0,0.00021999,2]
[399273054,1766225474085,-500.0,0.00021999,2]
[399273055,1766225474094,-500.0,0.00021999,2]
[399273056,1766225474103,-500.0,0.00021999,2]
[399273057,1766225474112,-2000.0,0.00022,7]
[399273058,1766225474122,-108342.05,0.00022,2]
[399273059,1766225474131,-258.17,0.00022,14]
[399273060,1766225474141,-399.26,0.00022,7]
[399273061,1766225474154,-165.534583,0.00022031,2]
[399273062,1766225474163,-623.28265559,0.00022217,16]
[399273063,1766225474173,-692.0,0.00022456,2]
[399273064,1766225474183,-2000.0,0.000225,7]
[399273065,1766225474194,-623.28265559,0.00022678,17]
[399273066,1766225474204,-1000.0,0.0002274,10]
[399273067,1766225474215,-12534.53404832,0.000229,2]
[399273068,1766225474378,-214.0,0.00022959,8]
[399273069,1766225474388,-500.0,0.00022999,2]
[399273070,1766225474397,-2000.0,0.00023,7]
[399273071,1766225474406,-4126.0,0.00023,2]
[399273072,1766225474415,-500.0,0.000231,2]
[399273073,1766225474424,-623.28265559,0.00023139,18]
[399273074,1766225474433,-2000.0,0.000235,7]
[399273075,1766225474442,-623.28265559,0.000236,19]
[399273076,1766225474451,-438.75970496,0.00023699,2]
[399273077,1766225474460,-2000.0,0.00024,7]
[399273078,1766225474469,-215.0,0.00024055,12]
[399273079,1766225474479,-623.28265559,0.00024061,20]
[399273080,1766225474488,-151.0,0.000241,7]
[399273081,1766225474498,-500.0,0.00024499,2]
[399273082,1766225474507,-500.0,0.00024499,2]
[399273083,1766225474516,-500.0,0.00024499,2]
[399273084,1766225474525,-500.0,0.00024499,2]
[399273085,1766225474534,-302.08030892,0.00024499,2]
[399273086,1766225474544,-108342.05,0.000245,2]
[399273087,1766225474556,-2000.0,0.000245,7]
[399273088,1766225474565,-623.28265559,0.00024522,21]
[399273089,1766225474574,-417.43098248,0.00024647,2]
[399273090,1766225474584,-55671.36338384,0.00024651,2]
[399273091,1766225474593,-150.0,0.00024658,2]
[399273092,1766225474602,-380.0,0.00024658,2]
[399273093,1766225474611,-1235.6196891,0.00024658,2]
[399273094,1766225474620,-150.0,0.000248,10]
[399273095,1766225474630,-18399.2152628,0.000248,2]
[399273096,1766225474639,-632.0,0.00024817,2]
[399273097,1766225474648,-177.09615432,0.00024883,2]
[399273098,1766225474658,-16354.8580114,0.0002489,2]